[Event "Titled Tuesday Blitz May 4 2021"]
[White "Oliveira, Silvio Eduardo"]
[Black "Dogan, Mire Deniz"]
[WhiteFideId "2111560"]
[BlackFideId "6317456"]
[WhiteElo "2302"]
[BlackElo "1850"]
[Result "1-0"]
[Round "02"]
[TimeControl "180+1"]
[Date "2021.05.04"]
[WhiteClock "0:01:21"]
[BlackClock "0:00:45"]

1. e4 {[%clk 0:03:00]}  e6 {[%clk 0:02:55]} 2. d4 {[%clk 0:03:00]}  d5 {[%clk 0:02:56]} 3. Nc3 {[%clk 0:03:01]}  dxe4 {[%clk 0:02:56]} 4. Nxe4 {[%clk 0:03:01]}  Nd7 {[%clk 0:02:57]} 5. Nf3 {[%clk 0:03:01]}  Ngf6 {[%clk 0:02:57]} 6. Nxf6+ {[%clk 0:03:01]}  Nxf6 {[%clk 0:02:57]} 7. Bd3 {[%clk 0:03:01]}  c5 {[%clk 0:02:57]} 8. Bg5 {[%clk 0:03:00]}  cxd4 {[%clk 0:02:55]} 9. Qe2 {[%clk 0:02:59]}  Be7 {[%clk 0:02:54]} 10. O-O-O {[%clk 0:02:58]}  Qa5 {[%clk 0:02:54]} 11. Kb1 {[%clk 0:02:55]}  O-O {[%clk 0:02:51]} 12. h4 {[%clk 0:02:51]}  b5 {[%clk 0:02:49]} 13. Bxf6 {[%clk 0:02:49]}  Bxf6 {[%clk 0:02:47]} 14. Qe4 {[%clk 0:02:49]}  g6 {[%clk 0:02:35]} 15. Qxa8 {[%clk 0:02:48]}  Qb6 {[%clk 0:02:21]} 16. Qe4 {[%clk 0:02:47]}  Bb7 {[%clk 0:02:19]} 17. Qf4 {[%clk 0:02:47]}  Bg7 {[%clk 0:02:12]} 18. h5 {[%clk 0:02:46]}  Bd5 {[%clk 0:02:06]} 19. hxg6 {[%clk 0:02:44]}  fxg6 {[%clk 0:02:04]} 20. Qh4 {[%clk 0:02:42]}  h6 {[%clk 0:01:45]} 21. Qg4 {[%clk 0:02:16]}  e5 {[%clk 0:01:39]} 22. Qxg6 {[%clk 0:02:09]}  Qa5 {[%clk 0:01:40]} 23. Rxh6 {[%clk 0:01:44]}  e4 {[%clk 0:01:10]} 24. Qh7+ {[%clk 0:01:40]}  Kf7 {[%clk 0:01:10]} 25. Qf5+ {[%clk 0:01:37]}  Ke7 {[%clk 0:01:05]} 26. Qxd5 {[%clk 0:01:31]}  Bxh6 {[%clk 0:01:05]} 27. Ne5 {[%clk 0:01:23]}  exd3 {[%clk 0:00:54]} 28. Nc6+ {[%clk 0:01:22]}  Ke8 {[%clk 0:00:45]} 29. Qe6# {[%clk 0:01:21]} 1-0


[Site "https://www.chess.com"]

[Event "Titled Tuesday Blitz May 4 2021"]
[White "Paasikangas, Johanna"]
[Black "Tokman, Ariel"]
[WhiteFideId "500879"]
[BlackFideId "117420"]
[WhiteElo "2136"]
[BlackElo "2345"]
[Result "0-1"]
[Round "02"]
[TimeControl "180+1"]
[Date "2021.05.04"]
[WhiteClock "0:00:01"]
[BlackClock "0:00:05"]

1. d4 {[%clk 0:03:00]}  e6 {[%clk 0:02:58]} 2. c4 {[%clk 0:03:00]}  Nf6 {[%clk 0:02:58]} 3. Nc3 {[%clk 0:02:59]}  Bb4 {[%clk 0:02:58]} 4. Qc2 {[%clk 0:02:58]}  d5 {[%clk 0:02:57]} 5. a3 {[%clk 0:02:57]}  Bxc3+ {[%clk 0:02:55]} 6. Qxc3 {[%clk 0:02:57]}  Nc6 {[%clk 0:02:52]} 7. Nf3 {[%clk 0:02:55]}  Ne4 {[%clk 0:02:50]} 8. Qc2 {[%clk 0:02:55]}  O-O {[%clk 0:02:48]} 9. e3 {[%clk 0:02:53]}  Na5 {[%clk 0:02:32]} 10. b3 {[%clk 0:02:45]}  c5 {[%clk 0:02:24]} 11. Bb2 {[%clk 0:02:42]}  cxd4 {[%clk 0:02:19]} 12. exd4 {[%clk 0:02:38]}  Nc6 {[%clk 0:02:00]} 13. Be2 {[%clk 0:02:34]}  Bd7 {[%clk 0:01:50]} 14. O-O {[%clk 0:02:33]}  Rc8 {[%clk 0:01:50]} 15. Rac1 {[%clk 0:02:29]}  Qf6 {[%clk 0:01:49]} 16. Bd3 {[%clk 0:02:09]}  Qf4 {[%clk 0:01:36]} 17. Rfe1 {[%clk 0:01:49]}  f5 {[%clk 0:01:26]} 18. Qe2 {[%clk 0:01:33]}  Na5 {[%clk 0:01:18]} 19. Ne5 {[%clk 0:01:27]}  Be8 {[%clk 0:01:09]} 20. b4 {[%clk 0:01:12]}  Nxc4 {[%clk 0:01:00]} 21. Nxc4 {[%clk 0:01:03]}  dxc4 {[%clk 0:01:00]} 22. Bxc4 {[%clk 0:00:57]}  Bf7 {[%clk 0:00:48]} 23. f3 {[%clk 0:00:51]}  Nf6 {[%clk 0:00:47]} 24. Bxe6 {[%clk 0:00:48]}  Rce8 {[%clk 0:00:47]} 25. Bxf7+ {[%clk 0:00:32]}  Rxf7 {[%clk 0:00:48]} 26. Qf2 {[%clk 0:00:30]}  Rfe7 {[%clk 0:00:46]} 27. Re5 {[%clk 0:00:28]}  Nd7 {[%clk 0:00:34]} 28. Rxe7 {[%clk 0:00:23]}  Rxe7 {[%clk 0:00:35]} 29. Rc8+ {[%clk 0:00:19]}  Kf7 {[%clk 0:00:35]} 30. Bc1 {[%clk 0:00:17]}  Qd6 {[%clk 0:00:24]} 31. Bg5 {[%clk 0:00:15]}  Re6 {[%clk 0:00:18]} 32. g3 {[%clk 0:00:13]}  Nb6 {[%clk 0:00:17]} 33. Bf4 {[%clk 0:00:11]}  Qd5 {[%clk 0:00:12]} 34. Rc7+ {[%clk 0:00:10]}  Re7 {[%clk 0:00:13]} 35. Rxe7+ {[%clk 0:00:07]}  Kxe7 {[%clk 0:00:14]} 36. Be5 {[%clk 0:00:07]}  Kf7 {[%clk 0:00:12]} 37. Qc2 {[%clk 0:00:06]}  Qd7 {[%clk 0:00:09]} 38. Qb3+ {[%clk 0:00:05]}  Nd5 {[%clk 0:00:08]} 39. f4 {[%clk 0:00:03]}  Kg6 {[%clk 0:00:07]} 40. Qc4 {[%clk 0:00:02]}  Qe6 {[%clk 0:00:06]} 41. Qd3 {[%clk 0:00:02]}  Kf7 {[%clk 0:00:04]} 42. Qd2 {[%clk 0:00:02]}  h6 {[%clk 0:00:05]} 43. Qd3 {[%clk 0:00:01]}  Nb6 {[%clk 0:00:05]} 0-1


[Site "https://www.chess.com"]

[Event "Titled Tuesday Blitz May 4 2021"]
[White "Papasimakopoulos, Alexandros"]
[Black "Nakamura, Hikaru"]
[WhiteFideId "4244125"]
[BlackFideId "2016192"]
[WhiteElo "2352"]
[BlackElo "2900"]
[Result "0-1"]
[Round "02"]
[TimeControl "180+1"]
[Date "2021.05.04"]
[WhiteClock "0:00:53"]
[BlackClock "0:00:50"]

1. d4 {[%clk 0:02:58]}  Nf6 {[%clk 0:02:59]} 2. c4 {[%clk 0:02:58]}  g6 {[%clk 0:03:00]} 3. Nc3 {[%clk 0:02:58]}  Bg7 {[%clk 0:03:00]} 4. e4 {[%clk 0:02:56]}  d6 {[%clk 0:03:01]} 5. f3 {[%clk 0:02:56]}  O-O {[%clk 0:03:00]} 6. Nge2 {[%clk 0:02:57]}  c5 {[%clk 0:03:00]} 7. d5 {[%clk 0:02:56]}  e6 {[%clk 0:03:01]} 8. Ng3 {[%clk 0:02:56]}  a6 {[%clk 0:03:01]} 9. a4 {[%clk 0:02:55]}  h5 {[%clk 0:03:01]} 10. Bg5 {[%clk 0:02:54]}  exd5 {[%clk 0:03:01]} 11. cxd5 {[%clk 0:02:54]}  Nbd7 {[%clk 0:03:01]} 12. Be2 {[%clk 0:02:54]}  Qc7 {[%clk 0:02:59]} 13. Qd2 {[%clk 0:02:52]}  c4 {[%clk 0:02:57]} 14. a5 {[%clk 0:02:49]}  Rb8 {[%clk 0:02:53]} 15. Ra2 {[%clk 0:02:31]}  Nc5 {[%clk 0:02:17]} 16. O-O {[%clk 0:02:17]}  Nb3 {[%clk 0:02:14]} 17. Qd1 {[%clk 0:02:15]}  Qc5+ {[%clk 0:02:11]} 18. Rf2 {[%clk 0:02:10]}  Nh7 {[%clk 0:02:10]} 19. Bc1 {[%clk 0:01:54]}  Bd4 {[%clk 0:02:06]} 20. Nh1 {[%clk 0:01:54]}  Nxc1 {[%clk 0:02:05]} 21. Qxc1 {[%clk 0:01:54]}  Bd7 {[%clk 0:01:59]} 22. Na4 {[%clk 0:01:50]}  Bxa4 {[%clk 0:01:40]} 23. Rxa4 {[%clk 0:01:50]}  b5 {[%clk 0:01:40]} 24. axb6 {[%clk 0:01:50]}  Qxb6 {[%clk 0:01:39]} 25. Bxc4 {[%clk 0:01:39]}  Qxb2 {[%clk 0:01:36]} 26. Qxb2 {[%clk 0:01:39]}  Rxb2 {[%clk 0:01:35]} 27. g3 {[%clk 0:01:40]}  h4 {[%clk 0:01:33]} 28. Kf1 {[%clk 0:01:35]}  Rb1+ {[%clk 0:01:32]} 29. Kg2 {[%clk 0:01:34]}  h3+ {[%clk 0:01:32]} 30. Kxh3 {[%clk 0:01:34]}  Rxh1 {[%clk 0:01:32]} 31. Rd2 {[%clk 0:01:33]}  Bc5 {[%clk 0:01:31]} 32. Rxa6 {[%clk 0:01:31]}  Ng5+ {[%clk 0:01:31]} 33. Kg4 {[%clk 0:01:30]}  Be3 {[%clk 0:01:31]} 34. Re2 {[%clk 0:01:27]}  Bc1 {[%clk 0:01:23]} 35. f4 {[%clk 0:01:23]}  Nxe4 {[%clk 0:01:21]} 36. Ra1 {[%clk 0:01:17]}  f5+ {[%clk 0:01:15]} 37. Kh3 {[%clk 0:01:16]}  Rg1 {[%clk 0:01:10]} 38. Rg2 {[%clk 0:01:05]}  Rxg2 {[%clk 0:01:05]} 39. Kxg2 {[%clk 0:01:06]}  Bb2 {[%clk 0:01:05]} 40. Ra2 {[%clk 0:01:03]}  Bd4 {[%clk 0:01:04]} 41. Ra6 {[%clk 0:01:02]}  Bc5 {[%clk 0:01:02]} 42. Bd3 {[%clk 0:01:02]}  Rb8 {[%clk 0:01:01]} 43. Ra2 {[%clk 0:00:59]}  Nc3 {[%clk 0:01:01]} 44. Rc2 {[%clk 0:00:57]}  Nd1 {[%clk 0:01:01]} 45. Re2 {[%clk 0:00:56]}  Kf7 {[%clk 0:01:00]} 46. h4 {[%clk 0:00:55]}  Rb2 {[%clk 0:00:59]} 47. h5 {[%clk 0:00:52]}  Rxe2+ {[%clk 0:00:51]} 48. Bxe2 {[%clk 0:00:53]}  Ne3+ {[%clk 0:00:50]} 49. Kf3 {[%clk 0:00:53]}  gxh5 {[%clk 0:00:50]} 0-1


[Site "https://www.chess.com"]

[Event "Titled Tuesday Blitz May 4 2021"]
[White "Papp, Petra"]
[Black "Preotu, Razvan"]
[WhiteFideId "739049"]
[BlackFideId "2613280"]
[WhiteElo "2259"]
[BlackElo "2407"]
[Result "0-1"]
[Round "02"]
[TimeControl "180+1"]
[Date "2021.05.04"]
[WhiteClock "0:00:02"]
[BlackClock "0:00:26"]

1. e4 {[%clk 0:03:00]}  c5 {[%clk 0:02:58]} 2. Nf3 {[%clk 0:03:00]}  d6 {[%clk 0:02:58]} 3. d4 {[%clk 0:03:00]}  cxd4 {[%clk 0:02:59]} 4. Nxd4 {[%clk 0:03:00]}  Nf6 {[%clk 0:02:58]} 5. Nc3 {[%clk 0:02:57]}  a6 {[%clk 0:02:58]} 6. Bg5 {[%clk 0:02:56]}  e6 {[%clk 0:02:57]} 7. f4 {[%clk 0:02:55]}  Be7 {[%clk 0:02:57]} 8. Qf3 {[%clk 0:02:54]}  Qc7 {[%clk 0:02:57]} 9. O-O-O {[%clk 0:02:54]}  Nbd7 {[%clk 0:02:55]} 10. g4 {[%clk 0:02:51]}  h6 {[%clk 0:02:52]} 11. Bxf6 {[%clk 0:02:50]}  Bxf6 {[%clk 0:02:52]} 12. h4 {[%clk 0:02:48]}  Nb6 {[%clk 0:02:51]} 13. g5 {[%clk 0:02:46]}  Bxd4 {[%clk 0:02:43]} 14. Rxd4 {[%clk 0:02:45]}  Qc5 {[%clk 0:02:44]} 15. Rd1 {[%clk 0:02:29]}  Bd7 {[%clk 0:02:43]} 16. Qd3 {[%clk 0:02:14]}  hxg5 {[%clk 0:02:42]} 17. fxg5 {[%clk 0:01:57]}  Rxh4 {[%clk 0:02:08]} 18. Rxh4 {[%clk 0:01:45]}  Qxg5+ {[%clk 0:02:07]} 19. Kb1 {[%clk 0:01:43]}  Qxh4 {[%clk 0:02:07]} 20. Qxd6 {[%clk 0:01:43]}  Bc6 {[%clk 0:02:07]} 21. Qc7 {[%clk 0:01:15]}  Rd8 {[%clk 0:01:45]} 22. Bd3 {[%clk 0:00:51]}  Nd7 {[%clk 0:01:33]} 23. Bxa6 {[%clk 0:00:45]}  Nc5 {[%clk 0:01:30]} 24. Rxd8+ {[%clk 0:00:22]}  Qxd8 {[%clk 0:01:31]} 25. Qxd8+ {[%clk 0:00:19]}  Kxd8 {[%clk 0:01:31]} 26. Bd3 {[%clk 0:00:18]}  Ke7 {[%clk 0:01:28]} 27. b4 {[%clk 0:00:18]}  Nxd3 {[%clk 0:01:23]} 28. cxd3 {[%clk 0:00:19]}  g5 {[%clk 0:01:19]} 29. b5 {[%clk 0:00:18]}  Bd7 {[%clk 0:01:18]} 30. a4 {[%clk 0:00:19]}  g4 {[%clk 0:01:17]} 31. Ne2 {[%clk 0:00:17]}  Kd6 {[%clk 0:01:05]} 32. d4 {[%clk 0:00:17]}  f5 {[%clk 0:01:04]} 33. exf5 {[%clk 0:00:10]}  exf5 {[%clk 0:01:04]} 34. Kc2 {[%clk 0:00:10]}  Kc7 {[%clk 0:00:35]} 35. Kd3 {[%clk 0:00:09]}  Kb6 {[%clk 0:00:36]} 36. Ke3 {[%clk 0:00:06]}  Ka5 {[%clk 0:00:36]} 37. Kf4 {[%clk 0:00:05]}  Kxa4 {[%clk 0:00:36]} 38. b6 {[%clk 0:00:05]}  Kb5 {[%clk 0:00:36]} 39. Ke5 {[%clk 0:00:04]}  Kxb6 {[%clk 0:00:36]} 40. Kd6 {[%clk 0:00:04]}  Bb5 {[%clk 0:00:33]} 41. Nf4 {[%clk 0:00:03]}  g3 {[%clk 0:00:26]} 42. d5 {[%clk 0:00:03]}  Bf1 {[%clk 0:00:26]} 43. Ke5 {[%clk 0:00:03]}  g2 {[%clk 0:00:26]} 44. Nxg2 {[%clk 0:00:02]}  Bxg2 {[%clk 0:00:26]} 45. Kxf5 {[%clk 0:00:02]}  Bxd5 {[%clk 0:00:26]} 0-1


[Site "https://www.chess.com"]

[Event "Titled Tuesday Blitz May 4 2021"]
[White "Pichot, Alan"]
[Black "Espinosa Veloz, Ermes"]
[WhiteFideId "110973"]
[BlackFideId "3507424"]
[WhiteElo "2622"]
[BlackElo "2333"]
[Result "1-0"]
[Round "02"]
[TimeControl "180+1"]
[Date "2021.05.04"]
[WhiteClock "0:00:07"]
[BlackClock "0:00:12"]

1. e4 {[%clk 0:03:00]}  c6 {[%clk 0:02:58]} 2. Nf3 {[%clk 0:02:58]}  d5 {[%clk 0:02:58]} 3. d3 {[%clk 0:02:58]}  Qc7 {[%clk 0:02:58]} 4. exd5 {[%clk 0:02:57]}  cxd5 {[%clk 0:02:58]} 5. c4 {[%clk 0:02:57]}  Nf6 {[%clk 0:02:54]} 6. Nc3 {[%clk 0:02:57]}  dxc4 {[%clk 0:02:38]} 7. dxc4 {[%clk 0:02:57]}  e6 {[%clk 0:02:32]} 8. g3 {[%clk 0:02:46]}  Be7 {[%clk 0:02:30]} 9. Bf4 {[%clk 0:02:44]}  Qa5 {[%clk 0:02:12]} 10. Bg2 {[%clk 0:02:41]}  O-O {[%clk 0:02:12]} 11. O-O {[%clk 0:02:41]}  Nc6 {[%clk 0:02:12]} 12. a3 {[%clk 0:02:32]}  Rd8 {[%clk 0:02:09]} 13. Qe2 {[%clk 0:02:18]}  Bd7 {[%clk 0:02:08]} 14. b4 {[%clk 0:02:18]}  Qh5 {[%clk 0:02:07]} 15. Rfd1 {[%clk 0:02:13]}  Be8 {[%clk 0:02:07]} 16. h3 {[%clk 0:02:08]}  h6 {[%clk 0:01:54]} 17. Nb5 {[%clk 0:01:49]}  a6 {[%clk 0:01:24]} 18. Nc3 {[%clk 0:01:17]}  g5 {[%clk 0:01:20]} 19. Bc7 {[%clk 0:01:13]}  Rxd1+ {[%clk 0:01:16]} 20. Rxd1 {[%clk 0:01:13]}  g4 {[%clk 0:01:14]} 21. Ne1 {[%clk 0:00:53]}  gxh3 {[%clk 0:01:10]} 22. Qxh5 {[%clk 0:00:52]}  Nxh5 {[%clk 0:01:11]} 23. Bxh3 {[%clk 0:00:53]}  Rc8 {[%clk 0:01:10]} 24. Bb6 {[%clk 0:00:51]}  Ne5 {[%clk 0:01:08]} 25. c5 {[%clk 0:00:51]}  Nc4 {[%clk 0:01:07]} 26. Ne4 {[%clk 0:00:42]}  Nxb6 {[%clk 0:01:05]} 27. cxb6 {[%clk 0:00:43]}  Ba4 {[%clk 0:01:05]} 28. Rd2 {[%clk 0:00:35]}  Rc1 {[%clk 0:01:02]} 29. Re2 {[%clk 0:00:35]}  Bb5 {[%clk 0:00:54]} 30. Re3 {[%clk 0:00:35]}  f5 {[%clk 0:00:52]} 31. Nc3 {[%clk 0:00:34]}  Bc4 {[%clk 0:00:38]} 32. Bf1 {[%clk 0:00:29]}  Bxf1 {[%clk 0:00:33]} 33. Kxf1 {[%clk 0:00:30]}  Kf7 {[%clk 0:00:32]} 34. Ne2 {[%clk 0:00:28]}  Ra1 {[%clk 0:00:31]} 35. Nd4 {[%clk 0:00:24]}  f4 {[%clk 0:00:30]} 36. gxf4 {[%clk 0:00:22]}  Nxf4 {[%clk 0:00:30]} 37. Rf3 {[%clk 0:00:19]}  e5 {[%clk 0:00:30]} 38. Ne2 {[%clk 0:00:19]}  Bg5 {[%clk 0:00:29]} 39. Nxf4 {[%clk 0:00:18]}  Bxf4 {[%clk 0:00:30]} 40. Rd3 {[%clk 0:00:18]}  Ke6 {[%clk 0:00:29]} 41. Ke2 {[%clk 0:00:17]}  e4 {[%clk 0:00:29]} 42. Rc3 {[%clk 0:00:15]}  Ra2+ {[%clk 0:00:28]} 43. Kf1 {[%clk 0:00:15]}  Be3 {[%clk 0:00:28]} 44. Rxe3 {[%clk 0:00:11]}  Ke5 {[%clk 0:00:27]} 45. Rh3 {[%clk 0:00:09]}  Kf4 {[%clk 0:00:26]} 46. Rxh6 {[%clk 0:00:08]}  Rxa3 {[%clk 0:00:26]} 47. Rf6+ {[%clk 0:00:07]}  Ke5 {[%clk 0:00:25]} 48. Rf7 {[%clk 0:00:07]}  Rb3 {[%clk 0:00:24]} 49. Nc2 {[%clk 0:00:07]}  Rb2 {[%clk 0:00:23]} 50. Rc7 {[%clk 0:00:07]}  Rb1+ {[%clk 0:00:20]} 51. Ke2 {[%clk 0:00:07]}  Rb3 {[%clk 0:00:20]} 52. Rxb7 {[%clk 0:00:06]}  Rc3 {[%clk 0:00:20]} 53. Kd2 {[%clk 0:00:06]}  Rb3 {[%clk 0:00:19]} 54. Rc7 {[%clk 0:00:06]}  Rd3+ {[%clk 0:00:20]} 55. Ke2 {[%clk 0:00:05]}  Rd6 {[%clk 0:00:20]} 56. b7 {[%clk 0:00:05]}  Rb6 {[%clk 0:00:21]} 57. Ne3 {[%clk 0:00:05]}  Rxb4 {[%clk 0:00:20]} 58. Nc4+ {[%clk 0:00:06]}  Kd4 {[%clk 0:00:18]} 59. Na5 {[%clk 0:00:06]}  Rb2+ {[%clk 0:00:16]} 60. Kf1 {[%clk 0:00:07]}  Ke5 {[%clk 0:00:14]} 61. Rc8 {[%clk 0:00:07]}  Rb1+ {[%clk 0:00:14]} 62. Kg2 {[%clk 0:00:07]}  e3 {[%clk 0:00:14]} 63. b8=Q+ {[%clk 0:00:06]}  Rxb8 {[%clk 0:00:12]} 64. Rxb8 {[%clk 0:00:07]}  e2 {[%clk 0:00:12]} 65. Re8+ {[%clk 0:00:07]} 1-0


[Site "https://www.chess.com"]

[Event "Titled Tuesday Blitz May 4 2021"]
[White "Piorun, Kacper"]
[Black "Gevorgyan, David Sh."]
[WhiteFideId "1130420"]
[BlackFideId "13303244"]
[WhiteElo "2535"]
[BlackElo "2255"]
[Result "1-0"]
[Round "02"]
[TimeControl "180+1"]
[Date "2021.05.04"]
[WhiteClock "0:01:57"]
[BlackClock "0:00:40"]

1. e4 {[%clk 0:03:00]}  c5 {[%clk 0:02:57]} 2. Nf3 {[%clk 0:02:59]}  Nf6 {[%clk 0:02:57]} 3. Nc3 {[%clk 0:02:55]}  d5 {[%clk 0:02:51]} 4. exd5 {[%clk 0:02:55]}  Nxd5 {[%clk 0:02:52]} 5. g3 {[%clk 0:02:55]}  Nxc3 {[%clk 0:02:50]} 6. bxc3 {[%clk 0:02:55]}  Nc6 {[%clk 0:02:47]} 7. Bg2 {[%clk 0:02:55]}  e5 {[%clk 0:02:44]} 8. O-O {[%clk 0:02:54]}  Bd6 {[%clk 0:02:44]} 9. d3 {[%clk 0:02:44]}  O-O {[%clk 0:02:44]} 10. Rb1 {[%clk 0:02:45]}  Qc7 {[%clk 0:02:39]} 11. Ng5 {[%clk 0:02:43]}  h6 {[%clk 0:02:24]} 12. Ne4 {[%clk 0:02:43]}  Be7 {[%clk 0:02:25]} 13. g4 {[%clk 0:02:33]}  Be6 {[%clk 0:02:20]} 14. Be3 {[%clk 0:02:30]}  b6 {[%clk 0:02:15]} 15. f4 {[%clk 0:02:27]}  f5 {[%clk 0:02:00]} 16. gxf5 {[%clk 0:02:24]}  Bxf5 {[%clk 0:02:01]} 17. Ng3 {[%clk 0:02:23]}  Bd7 {[%clk 0:01:47]} 18. f5 {[%clk 0:02:21]}  Rad8 {[%clk 0:01:38]} 19. Qh5 {[%clk 0:02:20]}  Be8 {[%clk 0:01:36]} 20. Qg4 {[%clk 0:02:19]}  Bf6 {[%clk 0:01:15]} 21. Bxh6 {[%clk 0:02:07]}  e4 {[%clk 0:01:14]} 22. Nxe4 {[%clk 0:02:07]}  Ne5 {[%clk 0:01:08]} 23. Qg3 {[%clk 0:02:07]}  Rd7 {[%clk 0:00:57]} 24. Bf4 {[%clk 0:01:59]}  Re7 {[%clk 0:00:40]} 25. Rbe1 {[%clk 0:01:57]} 1-0


[Site "https://www.chess.com"]

[Event "Titled Tuesday Blitz May 4 2021"]
[White "Poormosavi, Seyed Kian"]
[Black "Matsuura, Frederico"]
[WhiteFideId "12585807"]
[BlackFideId "2107848"]
[WhiteElo "2134"]
[BlackElo "2302"]
[Result "0-1"]
[Round "02"]
[TimeControl "180+1"]
[Date "2021.05.04"]
[WhiteClock "0:02:17"]
[BlackClock "0:02:21"]

1. e4 {[%clk 0:03:00]}  e6 {[%clk 0:02:58]} 2. d4 {[%clk 0:02:52]}  d5 {[%clk 0:02:58]} 3. Nd2 {[%clk 0:02:53]}  Be7 {[%clk 0:02:56]} 4. Ngf3 {[%clk 0:02:53]}  Nf6 {[%clk 0:02:50]} 5. e5 {[%clk 0:02:51]}  Nfd7 {[%clk 0:02:50]} 6. c3 {[%clk 0:02:52]}  c5 {[%clk 0:02:50]} 7. Bd3 {[%clk 0:02:52]}  Nc6 {[%clk 0:02:50]} 8. O-O {[%clk 0:02:52]}  g5 {[%clk 0:02:49]} 9. h3 {[%clk 0:02:52]}  h5 {[%clk 0:02:49]} 10. dxc5 {[%clk 0:02:31]}  g4 {[%clk 0:02:35]} 11. hxg4 {[%clk 0:02:22]}  hxg4 {[%clk 0:02:35]} 12. Nd4 {[%clk 0:02:23]}  Ndxe5 {[%clk 0:02:34]} 13. Be2 {[%clk 0:02:22]}  Bxc5 {[%clk 0:02:24]} 14. Nxc6 {[%clk 0:02:17]}  Qh4 {[%clk 0:02:21]} 0-1


[Site "https://www.chess.com"]

[Event "Titled Tuesday Blitz May 4 2021"]
[White "Prilleltensky, Matan"]
[Black "Antonio, Jorge Carlos"]
[WhiteFideId "2024810"]
[BlackFideId "113190"]
[WhiteElo "2190"]
[BlackElo "2247"]
[Result "1-0"]
[Round "02"]
[TimeControl "180+1"]
[Date "2021.05.04"]
[WhiteClock "0:01:48"]
[BlackClock "0:01:52"]

1. c4 {[%clk 0:03:00]}  e5 {[%clk 0:02:57]} 2. Nc3 {[%clk 0:03:00]}  Nc6 {[%clk 0:02:54]} 3. Nf3 {[%clk 0:03:00]}  Bb4 {[%clk 0:02:43]} 4. Nd5 {[%clk 0:02:59]}  Ba5 {[%clk 0:02:42]} 5. Qc2 {[%clk 0:02:21]}  Nf6 {[%clk 0:02:37]} 6. a3 {[%clk 0:02:21]}  d6 {[%clk 0:02:30]} 7. b4 {[%clk 0:02:20]}  Bb6 {[%clk 0:02:29]} 8. Bb2 {[%clk 0:02:08]}  O-O {[%clk 0:02:28]} 9. Ng5 {[%clk 0:01:58]}  Bxf2+ {[%clk 0:02:21]} 10. Kd1 {[%clk 0:01:48]}  h6 {[%clk 0:02:01]} 11. Nxf6+ {[%clk 0:01:47]}  Qxf6 {[%clk 0:01:52]} 12. Qh7# {[%clk 0:01:48]} 1-0


[Site "https://www.chess.com"]

[Event "Titled Tuesday Blitz May 4 2021"]
[White "Priyanka, K"]
[Black "Vypkhaniuk, Ihor"]
[WhiteFideId "5082986"]
[BlackFideId "14112256"]
[WhiteElo "1893"]
[BlackElo "2368"]
[Result "0-1"]
[Round "02"]
[TimeControl "180+1"]
[Date "2021.05.04"]
[WhiteClock "0:00:01"]
[BlackClock "0:00:07"]

1. e4 {[%clk 0:03:00]}  c5 {[%clk 0:02:58]} 2. Nf3 {[%clk 0:03:00]}  e6 {[%clk 0:02:58]} 3. d4 {[%clk 0:02:59]}  cxd4 {[%clk 0:02:58]} 4. Nxd4 {[%clk 0:02:59]}  a6 {[%clk 0:02:58]} 5. Bd3 {[%clk 0:02:59]}  Bc5 {[%clk 0:02:57]} 6. Nb3 {[%clk 0:02:58]}  Be7 {[%clk 0:02:57]} 7. O-O {[%clk 0:02:57]}  Qc7 {[%clk 0:02:34]} 8. Qe2 {[%clk 0:02:52]}  d6 {[%clk 0:02:30]} 9. c4 {[%clk 0:02:51]}  Nf6 {[%clk 0:02:29]} 10. Nc3 {[%clk 0:02:50]}  Nbd7 {[%clk 0:02:25]} 11. Bd2 {[%clk 0:02:41]}  Ne5 {[%clk 0:02:20]} 12. f4 {[%clk 0:02:35]}  Nxd3 {[%clk 0:02:17]} 13. Qxd3 {[%clk 0:02:36]}  b6 {[%clk 0:02:12]} 14. Rae1 {[%clk 0:02:27]}  O-O {[%clk 0:02:02]} 15. e5 {[%clk 0:02:11]}  Nd7 {[%clk 0:01:59]} 16. Qg3 {[%clk 0:01:42]}  Bb7 {[%clk 0:01:51]} 17. Ne4 {[%clk 0:01:06]}  d5 {[%clk 0:01:00]} 18. cxd5 {[%clk 0:00:58]}  Bxd5 {[%clk 0:01:01]} 19. f5 {[%clk 0:00:32]}  Qxe5 {[%clk 0:00:43]} 20. Bf4 {[%clk 0:00:15]}  Qxb2 {[%clk 0:00:31]} 21. Rf2 {[%clk 0:00:14]}  Qa3 {[%clk 0:00:23]} 22. Bh6 {[%clk 0:00:08]}  g6 {[%clk 0:00:24]} 23. f6 {[%clk 0:00:06]}  Bb4 {[%clk 0:00:15]} 24. Bxf8 {[%clk 0:00:03]}  Bxf8 {[%clk 0:00:16]} 25. Qh4 {[%clk 0:00:02]}  Bxe4 {[%clk 0:00:14]} 26. Qxe4 {[%clk 0:00:01]}  Rc8 {[%clk 0:00:14]} 27. Qb7 {[%clk 0:00:01]}  Rd8 {[%clk 0:00:11]} 28. Rd1 {[%clk 0:00:02]}  a5 {[%clk 0:00:09]} 29. Rxd7 {[%clk 0:00:02]}  Rxd7 {[%clk 0:00:09]} 30. Qxd7 {[%clk 0:00:03]}  a4 {[%clk 0:00:10]} 31. Nd4 {[%clk 0:00:02]}  Qc1+ {[%clk 0:00:09]} 32. Rf1 {[%clk 0:00:03]}  Qd2 {[%clk 0:00:09]} 33. Nf3 {[%clk 0:00:02]}  Qxa2 {[%clk 0:00:09]} 34. Qb7 {[%clk 0:00:02]}  Qe2 {[%clk 0:00:09]} 35. Qxb6 {[%clk 0:00:01]}  a3 {[%clk 0:00:08]} 36. Qf2 {[%clk 0:00:02]}  Qc4 {[%clk 0:00:07]} 37. Qd2 {[%clk 0:00:01]}  Bc5+ {[%clk 0:00:08]} 38. Kh1 {[%clk 0:00:01]}  Qxf1+ {[%clk 0:00:07]} 0-1


[Site "https://www.chess.com"]

[Event "Titled Tuesday Blitz May 4 2021"]
[White "Prydun, Andriy"]
[Black "Bartel, Michal"]
[WhiteFideId "14145898"]
[BlackFideId "1119257"]
[WhiteElo "2033"]
[BlackElo "2271"]
[Result "0-1"]
[Round "02"]
[TimeControl "180+1"]
[Date "2021.05.04"]
[WhiteClock "0:00:04"]
[BlackClock "0:01:09"]

1. d4 {[%clk 0:03:00]}  Nf6 {[%clk 0:02:59]} 2. Nc3 {[%clk 0:03:01]}  d5 {[%clk 0:02:58]} 3. Bf4 {[%clk 0:02:49]}  c6 {[%clk 0:02:56]} 4. f3 {[%clk 0:02:49]}  Qb6 {[%clk 0:02:51]} 5. Rb1 {[%clk 0:02:48]}  Bf5 {[%clk 0:02:48]} 6. g4 {[%clk 0:02:48]}  Bg6 {[%clk 0:02:48]} 7. h4 {[%clk 0:02:48]}  h6 {[%clk 0:02:44]} 8. e3 {[%clk 0:02:48]}  e6 {[%clk 0:02:44]} 9. Nh3 {[%clk 0:02:47]}  Be7 {[%clk 0:02:42]} 10. Be5 {[%clk 0:02:46]}  Nbd7 {[%clk 0:02:41]} 11. Nf4 {[%clk 0:02:46]}  Bh7 {[%clk 0:02:38]} 12. g5 {[%clk 0:02:47]}  Nxe5 {[%clk 0:02:35]} 13. gxf6 {[%clk 0:02:44]}  Bxf6 {[%clk 0:02:18]} 14. dxe5 {[%clk 0:02:44]}  Qxe3+ {[%clk 0:02:18]} 15. Nfe2 {[%clk 0:02:41]}  Bxe5 {[%clk 0:02:19]} 16. Qd2 {[%clk 0:02:27]}  Qxf3 {[%clk 0:02:16]} 17. Rg1 {[%clk 0:02:25]}  Bf6 {[%clk 0:02:05]} 18. Bg2 {[%clk 0:01:16]}  Bxh4+ {[%clk 0:01:54]} 19. Kd1 {[%clk 0:01:16]}  Qh5 {[%clk 0:01:47]} 20. Rf1 {[%clk 0:01:08]}  O-O {[%clk 0:01:41]} 21. Bf3 {[%clk 0:01:07]}  Qe5 {[%clk 0:01:37]} 22. Rg1 {[%clk 0:00:29]}  Bg5 {[%clk 0:01:33]} 23. Qe1 {[%clk 0:00:29]}  Qf5 {[%clk 0:01:32]} 24. Qg3 {[%clk 0:00:23]}  Qxc2+ {[%clk 0:01:30]} 25. Ke1 {[%clk 0:00:24]}  Qd2+ {[%clk 0:01:28]} 26. Kf2 {[%clk 0:00:22]}  Bxb1 {[%clk 0:01:25]} 27. Rxb1 {[%clk 0:00:23]}  Qe3+ {[%clk 0:01:19]} 28. Kg2 {[%clk 0:00:22]}  e5 {[%clk 0:01:20]} 29. Re1 {[%clk 0:00:04]}  e4 {[%clk 0:01:12]} 30. Bg4 {[%clk 0:00:04]}  Qxg3+ {[%clk 0:01:10]} 31. Nxg3 {[%clk 0:00:04]}  g6 {[%clk 0:01:09]} 0-1


[Site "https://www.chess.com"]